Cogmind - Beta 16 @@@ ROGUE MODE // 2026.01.17 @ 20:17:40 Player: Lazz Result: Destroyed by DAS Turret with DAS Cannon Performance ------------- Evolutions (0) 0 Regions Visited (3) 600 Robots Destroyed (10) 50 Value Destroyed (72) 72 Prototype IDs (25) 500 Alien Tech Used (0) 0 Bonus (271) 271 TOTAL SCORE: 1493 Bonus ------- Aligned with FarCom 300 Friendly Fire -29 Cogmind --------- Core Integrity 0/250 Matter 259/300 Energy 67/100 System Corruption 2% Temperature Cool (0) Movement Rolling (110) Ox2 Location -10/Exiles Parts ------- > --- POWER (1) -------- (None) > --- PROPULSION (2) --- Wheel Wheel > --- UTILITY (2) ------ High-capacity Storage Unit Improved Terrain Scanner > --- WEAPON (2) ------- (None) > --- INVENTORY (20) --- Light Nuclear Core Wheel Heat Sink Large Matter Pod (150) Hacking Suite Trap Reconfigurator Light Assault Rifle Peak State ------------ > --- POWER ------------ Light Ion Engine > --- PROPULSION ------- Wheel Compact Wheel > --- UTILITY ---------- High-capacity Storage Unit Improved Terrain Scanner > --- WEAPON ----------- EM Pulse Gun Assault Rifle > --- INVENTORY -------- Light Nuclear Core Fission Core Light Fission Core Wheel Wheel Wheel Heat Sink Large Matter Pod Hacking Suite Trap Reconfigurator Light Assault Rifle [Rating: 12] Favorites ----------- Power Light Ion Engine Engine Light Ion Engine Propulsion Compact Wheel Wheel Compact Wheel Utility Improved Terrain Scanner Device Improved Terrain Scanner Storage High-capacity Storage Unit Weapon Assault Rifle Energy Gun EM Pulse Gun Ballistic Gun Assault Rifle Build | -11 -10 -10 -10 ------- Run | Yrd Mat Min Exi Slots Evolved . | . . . . Power . | . . . . Propulsion . | . . . . Utility . | . . . . Weapon . | . . . . Parts Attached 12 | 7 2 1 2 Power 1 | 1 . . . Engine 1 | 1 . . . Core . | . . . . Reactor . | . . . . Propulsion 5 | 2 . 1 2 Treads . | . . . . Leg . | . . . . Wheel 5 | 2 . 1 2 Hover . | . . . . Flight . | . . . . Utility 3 | 2 1 . . Device 1 | 1 . . . Storage 2 | 1 1 . . Processor . | . . . . Hackware . | . . . . Protection . | . . . . Artifact . | . . . . Weapon 3 | 2 1 . . Energy Gun 2 | 1 1 . . Energy Cannon . | . . . . Ballistic Gun 1 | 1 . . . Ballistic Cannon . | . . . . Launcher . | . . . . Special Weapon . | . . . . Impact Weapon . | . . . . Slashing Weapon . | . . . . Piercing Weapon . | . . . . Special Melee Weapon . | . . . . Unidentified Prototypes . | . . . . Parts Lost 7 | . 1 1 5 Power 1 | . . . 1 Propulsion 3 | . . 1 2 Utility . | . . . . Weapon 3 | . 1 . 2 Highest Loss Streak 5 | . 1 1 5 To Critical Strikes . | . . . . Average Backups 7 | 2 6 8 10 Power 1 | . . 1 2 Propulsion 2 | 1 4 3 3 Utility 2 | . 1 3 3 Weapon . | . . . 1 Tool/Special . | . . . . Unused Backups 10 | . 1 . 9 Power 3 | . . . 3 Propulsion 1 | . . . 1 Utility 5 | . 1 . 4 Weapon 1 | . . . 1 Tool/Special . | . . . . Average Slot Usage (%) 99 | . 100 99 98 Engine 13 | . 14 14 13 Wheel 27 | . 28 27 28 Device 14 | . 14 14 14 Storage 14 | . 14 14 14 Energy Gun 13 | . 14 14 13 Ballistic Gun 13 | . 14 14 13 Peak Build Rating 12 | 9 10 10 12 Average Rating 9 | 5 9 9 11 On Entrance 7 | . 9 10 10 Avg Prop Armor Cover (%) . | . . . . Naked Turns . | . . . . Heaviest Build 48 | 13 48 48 48 Greatest Support 26 | 26 26 26 26 Greatest Overweight (x) 2 | . 1 1 2 Average Overweight (x) . | . . 1 1 Largest Inventory Capacity 20 | 8 20 20 20 Average Capacity 17 | 7 18 20 20 Most Carried 11 | 6 8 9 11 Average Carried 7 | 2 6 8 10 Final Capacity 20 | 8 20 20 20 Final Carried 8 | 6 8 8 7 Class Distribution -------------------- 100% | Mutant Dominant Class ---------------- Mutant | -10/Materials Mutant | -10/Mines Mutant | -10/Exiles Resources | -11 -10 -10 -10 ----------- Run | Yrd Mat Min Exi Matter Collected 538 | 346 141 51 . Remotely . | . . . . Salvage Created 300 | 194 17 37 52 Parts 25 | 18 3 3 1 Haulers Intercepted . | . . . . Recyclers Shooed 1 | 1 . . . Parts Field Recycled . | . . . . Retrieved Matter . | . . . . Parts Self-Destructed . | . . . . Prevented . | . . . . Parts Restored . | . . . . Kills | -11 -10 -10 -10 ------- Run | Yrd Mat Min Exi Combat Hostiles Destroyed 2 | . . 2 . Guns 2 | . . 2 . Classes Destroyed 5 | 3 1 1 . Worker 2 | 2 . . . Tunneler 4 | 4 . . . Recycler 1 | 1 . . . Operator 1 | . 1 . . Swarmer 2 | . . 2 . Best Kill Streak 4 | 4 1 1 . Combat Bots Only 1 | . . 1 . Max Kills in Single Turn 1 | 1 1 1 . Gunslinging . | . . . . Exploded . | . . . . Melee . | . . . . Uniques/NPCs Destroyed . | . . . . Combat | -11 -10 -10 -10 -------- Run | Yrd Mat Min Exi Hostile Shots Fired 59 | . 23 17 19 Missed 23 | . 11 8 4 Hits 36 | . 12 9 15 Projectile 36 | . 12 9 15 Damage Taken 724 | . 164 70 490 Core 299 | . 24 10 265 Absorbed by Shields . | . . . . Core Remaining (%) 100 | 100 . . . Volleys Fired 28 | 13 8 4 3 Largest 2 | 2 2 2 2 Hottest 60 | 60 60 60 60 Shots Fired 55 | 26 15 8 6 Gun 55 | 26 15 8 6 Cannon . | . . . . Launcher . | . . . . Special . | . . . . Kinetic 28 | 13 8 4 3 Thermal . | . . . . Explosive . | . . . . Electromagnetic 27 | 13 7 4 3 Robot Hit Streak 10 | 10 8 3 7 Robot Miss Streak 3 | 1 2 3 . Penetration Max . | . . . . Secondary Targets . | . . . . Shots Hit Robots 36 | 16 10 4 6 Core Hits 16 | 8 4 2 2 Critical Kills 1 | 1 . . . Critical Parts Destroyed . | . . . . Critical Strikes 1 | 1 . . . Destroy 1 | 1 . . . Melee Attacks . | . . . . Impact . | . . . . Slashing . | . . . . Piercing . | . . . . Sneak Attacks . | . . . . Combat Hostiles . | . . . . Follow-up Attacks . | . . . . Damage Inflicted 565 | 218 135 58 154 Guns 472 | 218 135 58 61 Cannons . | . . . . Explosions 93 | . . . 93 Melee . | . . . . Ramming . | . . . . Kinetic 208 | 85 62 37 24 Thermal 93 | . . . 93 Explosive . | . . . . Electromagnetic 264 | 133 73 21 37 Impact . | . . . . Slashing . | . . . . Piercing . | . . . . Highest Corruption 2 | . 2 2 2 Average Corruption 2 | . 2 2 2 Corruption Purged . | . . . . Corruption Blocked . | . . . . Effects 5 | . . 2 3 Matter Fused 3 | . . 1 2 Energy Discharges 1 | . . . 1 Data Loss (minor) 1 | . . 1 . Overload Shots . | . . . . Overflow Damage . | . . . . Projectiles . | . . . . Explosions . | . . . . Melee . | . . . . Knockbacks . | . . . . Impact . | . . . . Kinetic . | . . . . Secondary . | . . . . Self-Inflicted Damage 29 | . . . 29 Shots 1 | . . . 1 Rammed . | . . . . Targets Rammed . | . . . . Kicked . | . . . . Crushed . | . . . . Highest Temperature 24 | . 24 . 12 Average Temperature 11 | . 11 . 12 Received Heat Transfer 93 | . 93 . . Siege Activations . | . . . . Martial Activations . | . . . . Shielding Activations . | . . . . Robots Disrupted . | . . . . Combat Hostiles . | . . . . Robots Corrupted . | . . . . Combat Hostiles . | . . . . Parts Fried . | . . . . Impact Corruptions . | . . . . Robots Melted . | . . . . Combat Hostiles . | . . . . Parts Melted . | . . . . Heat Transferred 100 | . . . 100 Parts Sabotaged . | . . . . Parts Stolen . | . . . . Parts Stripped . | . . . . Power Chain Reactions 1 | . . . 1 Alert | -11 -10 -10 -10 ------- Run | Yrd Mat Min Exi Maximum Alert Level . | . . . . Low Security (%) 100 | 100 100 100 . Level 1 . | . . . . Level 2 . | . . . . Level 3 . | . . . . Level 4 . | . . . . Level 5 . | . . . . High Security . | . . . . Max Security . | . . . . Peak Influence 20 | 15 5 20 . Initial . | . . . . Average 3 | 3 . 5 . Influence Increases 80 | 35 5 40 . Destroy 0b10 Robot/C 40 | . . 40 . Destroy 0b10 Robot/NC 40 | 35 5 . . Influence Decreases 80 | 35 5 40 . Time Decay 80 | 35 5 40 . Squads Dispatched 1 | . 1 . . Investigation 1 | . 1 . . Extermination . | . . . . Reinforcement . | . . . . Assault . | . . . . Garrison . | . . . . Intercept . | . . . . Searches Triggered . | . . . . Construction Impeded . | . . . . Haulers Reinforced . | . . . . Active Scanning Responses . | . . . . Cargo Convoy Interrupts . | . . . . Stealth | -11 -10 -10 -10 --------- Run | Yrd Mat Min Exi Distress Signals 1 | . 1 . . Communications Jammed . | . . . . Distress Signals . | . . . . Times Spotted 18 | . 4 5 9 Peak Tracking Total 13 | . 3 3 13 Tactical Retreats . | . . . . Traps | -11 -10 -10 -10 ------- Run | Yrd Mat Min Exi Traps Triggered 1 | . 1 . . Indirectly . | . . . . Trap Hack Attempts . | . . . . Triggered . | . . . . Disarmed . | . . . . Reprogrammed . | . . . . Reused . | . . . . Traps Extracted . | . . . . Installed . | . . . . Triggered . | . . . . Machines | -11 -10 -10 -10 ---------- Run | Yrd Mat Min Exi Machines Disabled 1 | . . . 1 Max in Single Turn 1 | . . . 1 Machines Repaired . | . . . . Machines Dismantled . | . . . . Machines Sabotaged . | . . . . Overloaded Fab Kills . | . . . . Hacking | -11 -10 -10 -10 --------- Run | Yrd Mat Min Exi Machines Accessed 7 | . 3 . 4 Terminals 3 | . 3 . . Fabricators . | . . . . Repair Stations . | . . . . Recycling Units . | . . . . Scanalyzers . | . . . . Garrison Access . | . . . . Total Hacks 36 | . 9 . 27 Successful 28 | . 1 . 27 Failed 8 | . 8 . . Catastrophic 2 | . 2 . . Database Lockouts . | . . . . Manual 4 | . 3 . 1 Terminals 9 | . 9 . . Fabricators . | . . . . Repair Stations . | . . . . Recycling Units . | . . . . Scanalyzers . | . . . . Garrison Access . | . . . . Terminal Hacks 28 | . 1 . 27 Record 26 | . . . 26 Prototype ID Bank 1 | . 1 . . Proto ID Catalog 1 | . . . 1 Fabricator Hacks . | . . . . Repair Station Hacks . | . . . . Recycling Unit Hacks . | . . . . Scanalyzer . | . . . . Garrison Access Hacks . | . . . . Unauthorized Hacks . | . . . . Terminals . | . . . . Fabricators . | . . . . Repair Stations . | . . . . Recycling Units . | . . . . Scanalyzers . | . . . . Garrison Access . | . . . . Data Cores Recovered 1 | . 1 . . Used . | . . . . Hacking Detections 3 | . 3 . . Full Trace Events 3 | . 3 . . Feedback Events . | . . . . Feedback Blocked . | . . . . Robot Schematics Acquired . | . . . . Robots Built . | . . . . Authchips . | . . . . Time . | . . . . Total Robot Build Rating . | . . . . Part Schematics Acquired . | . . . . Parts Built . | . . . . Authchips . | . . . . Time . | . . . . Total Part Build Rating . | . . . . Part Studies Acquired . | . . . . Parts Repaired . | . . . . Time . | . . . . Parts Recycled . | . . . . Recycled Matter . | . . . . Retrieved Matter . | . . . . Retrieved Components . | . . . . Parts Scanalyzed . | . . . . Part Schematics Acquired . | . . . . Parts Damaged . | . . . . Bothacking | -11 -10 -10 -10 ------------ Run | Yrd Mat Min Exi Used RIF Installer . | . . . . Robots Hacked . | . . . . Non-combat . | . . . . Combat . | . . . . Robot Hacks Applied . | . . . . Relay Couplers Released . | . . . . Fabnet Peak Effective % . | . . . . Robots Rewired . | . . . . Allies Hacked . | . . . . Hacks Repelled . | . . . . Allies | -11 -10 -10 -10 -------- Run | Yrd Mat Min Exi Total Allies 2 | . . 2 . Largest Group 2 | . . 2 2 Highest-Rated Group 41 | . . 41 41 Highest-Rated Ally 31 | . . 31 31 Total Orders . | . . . . Ally Attacks . | . . . . Total Damage . | . . . . Kills . | . . . . Allies Corrupted . | . . . . Allies Melted . | . . . . Intel | -11 -10 -10 -10 ------- Run | Yrd Mat Min Exi Active Infowar (turns) 696 | 22 149 156 369 Terrain 696 | 22 149 156 369 Robot Analysis Total . | . . . . Derelict Logs Recovered 1 | . . 1 . Drone Launches . | . . . . Drone Recoveries . | . . . . Exploration | -11 -10 -10 -10 ------------- Run | Yrd Mat Min Exi Turns Passed 819 | 145 149 156 369 Spaces Moved 620 | 100 94 90 336 Core 3 | 3 . . . Treads . | . . . . Legs . | . . . . Wheels 617 | 97 94 90 336 Hover . | . . . . Flight . | . . . . Fastest Speed 50 | 50 90 105 105 Average Speed 102 | 89 101 105 105 Slowest Speed 130 | 100 105 105 130 Overloaded Moves . | . . . . Propulsion Burnouts . | . . . . Robots Hopped . | . . . . Potential Cave-ins . | . . . . Cave-ins Triggered . | . . . . Exploration Rate (%) 31 | 4 23 36 62 Regions Visited 3 Branch Regions 2 Pre-discovered Areas . | . . . . Known Exits Taken 1 | . . 1 . Unknown Exits Taken 2 | 1 1 . . Scrap Searched . | . . . . Spaces Dug . | . . . . Terrain Destroyed 4 | . . . 4 Melee . | . . . . Projectile . | . . . . AOE 4 | . . . 4 Terrain Rammed . | . . . . Walls Destroyed . | . . . . Machines Disabled . | . . . . Actions | -11 -10 -10 -10 --------- Run | Yrd Mat Min Exi Total 749 | 127 133 143 346 Wait 72 | . 24 48 . Move 617 | 99 93 89 336 Hop . | . . . . Pick Up 16 | 8 4 1 3 Fast Attach 5 | 5 . . . Attach 6 | 2 1 1 2 Detach . | . . . . Swap 1 | . 1 . . Drop 4 | . 2 . 2 Fire 28 | 13 8 4 3 Melee . | . . . . Ram . | . . . . Kick . | . . . . Crush . | . . . . Escape Stasis . | . . . . Rewire . | . . . . Trap . | . . . . Miscellaneous . | . . . . Route ------- -11/Scrapyard -10/Materials -10/Mines (discovered 2 exits: [*Mat] / *Exi) -10/Exiles (discovered 1 exit: [*Min]) History --------- Turn | Location | Event 26 | -11/Scrapyard | Discovered new exit (range 14) 146 | -11/Scrapyard | Entered Materials 257 | -10/Materials | Discovered new exit (range 12) 264 | -10/Materials | Met 8R-AWN 295 | -10/Materials | Entered Mines 298 | -10/Mines | Followed 8R-AWN into the Mines 302 | -10/Mines | Build established: Mutant 366 | -10/Mines | Identified exit to Exiles 451 | -10/Mines | Discovered new exit (range 5) 451 | -10/Mines | Entered Exiles 451 | -10/Exiles | Accompanied by 2 allies 481 | -10/Exiles | Led the pair of lost Derelicts to a safe place 487 | -10/Exiles | Discovered new exit (range 14) 541 | -10/Exiles | Welcomed by 8R-AWN 557 | -10/Exiles | Met EX-HEX 590 | -10/Exiles | Met EX-BIN 614 | -10/Exiles | Aligned with FarCom system 615 | -10/Exiles | Given EX-Vault access code 641 | -10/Exiles | Opened EX-Vault 656 | -10/Exiles | Found Trap Reconfigurator 713 | -10/Exiles | Warned to stay clear of 0b10 Research branches 742 | -10/Exiles | Met EX-DEC 802 | -10/Exiles | Attacked by the Exiles 816 | -10/Exiles | Core integrity fell below 50% 819 | -10/Exiles | Core integrity fell below 20% 820 | -10/Exiles | Destroyed by DAS Turret with DAS Cannon Last Messages --------------- It was such a good haul, too, only to see JA-CK9 crushed like a forgotten microchip... 00802_ EXILES: Hostile robot within lab perimeter. Defensive protocols time, folks! 00807_ Chain reaction triggered in Ion Engine. 00807_ A-02 Transporter destroyed. 00807_ Machine disabled. 00810_ Wheel destroyed. 00810_ Dropped Rigged Lgt. Fission Core. 00811_ Dropped Rigged Fission Core. 00811_ Lgt. Ion Engine destroyed. 00812_ EM Pulse Gun destroyed. 00814_ Rigged Fission Core explodes. 00814_ as-17870 destroyed. 00816_ Assault Rifle destroyed. 00816_ Rigged Lgt. Fission Core explodes. 00816_ EX-HEX destroyed. 00816_ as-66370 destroyed. 00817_ Com. Wheel destroyed. 00818_ EX-BIN: "I just want to science!" Map ----- +----------------------------------------------------+ | ???????????????#"" #??????#?# """##? | | ???????????????#"" #????????#" "X" """""? | | ???????????????#"" "#?##?????#" """ #?? | | ???????????????# ""#????????#" """""""""#?? | | ?? ##??????????#"" ""#???????##" ###########?? | | ?? #?????????### ###??????##"" #???????????? | | ? #####????### ###?######"" #???????#???? | | ? """#####X# #"###""""""" ##??????????? | | ? """""" " "" ##???####### | | ?# "" """ " #####"""""" | | ??# " " " """ | | ???## "" | | ????### " | | ??????## | | ???????## | | ????????##" | | ?????????#""" """""" | | ????????##" ######""" | | ????????#"" ""##??#?#####""" | | ?#?????##""" """##?????????##""" | | ???????#""" """##???????????#"""" | | ???????#""" ""#??######????#"" | | ???????#"" ####" #??#??""" | | ???????#""" c ##aa% ##""" | | ???????#""t !!"" | | ???????##"" @ %%!!a a | | ????????#"""" % *a a | | ????????## %% ! " | | ????????##" " "" """ | | ?????????#"" ""## ##""" " " ""#" | | ???????#?#"" [ ""###? #??##?"?" "??## | | ?????????#" =% """"##???? #?????????????# | | ?????????#""" """#?#??? ##????????????? | | ?????????## ""##???? ? ?????????????? | | ??????????#"" """##??????? ????????????? | | ??????????##""" ##????????? ?#??????????? | | ???????????##"""" ##?????#???"!"#??????????? | | ????????????### #??????????#?#???????????? | | ??????????????##### ###???????????????????????? | | ??????????????????## #???#?????????????????????? | | ???????????????????# #?????????????????????????? | | ???????????????????# #?????????????????????????? | | ???????????????????# #?????????????????????????? | | ???????????????????# #?????????????????????????? | | ???????????????????# #?????????????????????????? | | ?????????????"?????# #?????????????????????????? | | ???????????????????# ??????????????????????????? | | ???????????????????? ??????????????????????????? | | ?????????????????????????????????????????????????? | | ?????????????????????????????????????????????????? | +----------------------------------------------------+ Best States ------------- Heat Dissipation 25 Energy Generation 10 Energy Capacity 125 Matter Stores 300 Matter Capacity 300 Sight Range 16 Terrain Scan Range 16 Terrain Scan Density 10 Evasion (%) 42 Item Schematics ----------------- None Robot Schematics ------------------ None Fabricated ------------ Nothing Repaired ---------- Nothing Studied --------- None Alien Tech Used ----------------- None Achievements -------------- Follow The Leader Challenges ------------ None Game ------ Seed SigixFlyingDoomcannon Manual? 0 Play Time 00:13:07 Cumulative 131.6 hours Start 2026.01.17 @ 20:03:29 End 2026.01.17 @ 20:17:40 Sessions 1 Manual Loads 0 Difficulty Rogue Special Mode None Game No. 188 Rogue 188 Adventurer 0 Explorer 0 Win Type - Total 1 Types 1/0/0/0/0/0/0/0/0/0 Lore% 63 Gallery% 58 Achievement% 42 Wizard Run 0 Options --------- Layout 2 ASCII 0 Keyboard 0 Movement Mouse Keybinds 0 Fullscreen 1 Font 16/SmallcapsGlow Map View 25x24 Zoom Use 99% Tactical HUD 1 Map Filters NONE Filters NONE Steam SD RUN: 93d66307-ada7-48a7-8aff-cd3080a4cff0